bitfinex/quotes_BTCUSD_20220211
["timestamp","ask_amount","ask_price","bid_price","bid_amount"]
[1644583263653,0.009793,43639.0,43637.0,0.221939]
[1644583263952,0.46014197,43640.0,43638.0,0.05]
[1644583264959,0.35305071,43644.0,43638.0,0.107301]
[1644583264960,0.29797056,43644.0,43638.0,0.107301]
[1644583265155,0.002,43644.0,43640.0,0.323972]
[1644583265354,0.002,43644.0,43640.0,0.423972]
[1644583265553,0.002,43644.0,43640.0,0.473972]
[1644583265754,0.002,43644.0,43642.0,0.323972]
[1644583265957,0.002,43644.0,43641.0,0.057295]
[1644583266154,0.002,43644.0,43642.0,0.381268]
[1644583266355,0.002,43644.0,43643.0,0.29302303]
[1644583266797,0.002,43644.0,43643.0,0.62775456]
[1644583267597,0.0017306,43646.0,43643.0,0.30378256]
[1644583267798,0.0017306,43646.0,43645.0,0.057292]
[1644583268098,0.0017306,43646.0,43645.0,0.381264]
[1644583268502,0.001,43646.0,43645.0,0.381264]
[1644583269299,0.001,43646.0,43645.0,0.67548063]
[1644583270355,0.001,43646.0,43645.0,0.381264]
[1644583272953,0.001,43646.0,43645.0,0.323972]
[1644583273553,0.001,43646.0,43644.0,0.17187964]
[1644583273755,0.001,43646.0,43645.0,0.323972]
[1644583273953,0.001,43646.0,43644.0,0.17187964]
[1644583274200,0.001,43646.0,43645.0,0.323972]
[1644583274399,0.001,43646.0,43644.0,0.17187964]
[1644583274600,0.001,43646.0,43645.0,0.62253884]
[1644583275300,0.001,43646.0,43645.0,0.323972]
[1644583279247,0.001,43646.0,43644.0,0.17187964]
[1644583279846,0.001,43646.0,43645.0,0.323972]
[1644583280048,0.001,43646.0,43644.0,0.22917464]
[1644583280247,0.001,43646.0,43645.0,0.323972]
[1644583280446,0.001,43646.0,43644.0,0.22917464]
[1644583281246,0.001,43646.0,43645.0,0.323972]
[1644583281453,0.001,43646.0,43642.0,0.40196327]
[1644583281703,0.001,43646.0,43643.0,0.323972]
[1644583282302,0.001,43646.0,43644.0,0.057292]
[1644583282701,0.001,43646.0,43645.0,0.323972]
[1644583284108,0.001,43646.0,43644.0,0.114584]
[1644583284306,0.001,43646.0,43645.0,0.323972]
[1644583284506,0.001,43646.0,43644.0,0.171879]
[1644583284803,0.001,43646.0,43645.0,0.60988982]
[1644583288655,0.001,43646.0,43645.0,0.70988982]
[1644583289296,0.001,43646.0,43645.0,0.423972]
[1644583289699,0.001,43647.0,43646.0,1.08852335]
[1644583289897,0.001,43647.0,43646.0,0.53852335]
[1644583290097,0.00373059,43648.0,43647.0,0.323972]
[1644583290297,0.00373059,43648.0,43647.0,0.423972]
[1644583290298,0.003,43648.0,43647.0,0.423972]
[1644583291099,0.003,43648.0,43647.0,0.7259522]
[1644583292300,0.003,43648.0,43647.0,0.423972]
[1644583294354,0.003,43648.0,43647.0,0.74555389]
[1644583302859,0.014,43649.0,43647.0,0.74555389]
[1644583303060,0.014,43649.0,43648.0,0.66758295]
[1644583303061,0.007,43649.0,43648.0,0.66758295]
[1644583303459,0.007,43649.0,43648.0,0.76758295]
[1644583303661,0.007,43649.0,43648.0,0.381255]
[1644583304511,0.004,43649.0,43648.0,0.481255]
[1644583304718,0.002,43650.0,43649.0,1.323972]
[1644583304912,0.00073062,43652.0,43650.0,0.381246]
[1644583305112,0.00073062,43652.0,43651.0,0.0458]
[1644583305315,0.002,43654.0,43651.0,0.369772]
[1644583305713,0.002,43654.0,43651.0,0.469772]
[1644583306114,0.001,43656.0,43654.0,0.323972]
[1644583306315,0.001,43656.0,43655.0,0.0458]
[1644583306612,0.002,43657.0,43656.0,0.573972]
[1644583306815,0.002,43657.0,43656.0,0.83194023]
[1644583306816,0.00184894,43657.0,43656.0,0.83194023]
[1644583307415,0.001,43658.0,43656.0,0.519772]
[1644583307614,0.001,43658.0,43657.0,0.323972]
[1644583307875,0.001,43658.0,43657.0,0.423972]
[1644583308160,0.002,43660.0,43659.0,0.323972]
[1644583308560,0.00273057,43660.0,43659.0,0.38123626]
[1644583309364,0.002,43660.0,43659.0,0.38123626]
[1644583311262,0.002,43660.0,43659.0,0.05726426]
[1644583311464,0.002,43660.0,43659.0,0.323784]
[1644583311700,0.002,43660.0,43658.0,0.03043718]
[1644583312102,0.12501558,43660.0,43658.0,0.03043718]
[1644583312303,0.002,43659.0,43658.0,0.03043718]
[1644583312503,0.371584,43659.0,43658.0,0.03043718]
[1644583313402,0.371584,43659.0,43658.0,0.08043718]
[1644583314804,0.371584,43659.0,43656.0,0.11083136]
[1644583315007,0.371584,43659.0,43655.0,0.114573]
[1644583315008,0.640406,43657.0,43644.0,0.00073084]
[1644583315366,0.325784,43651.0,43644.0,0.00073084]
[1644583315562,0.371584,43651.0,43644.0,0.00073084]
[1644583315756,0.66431238,43651.0,43644.0,0.72133423]
[1644583315957,0.66431238,43651.0,43644.0,0.39895473]
[1644583316757,0.66431238,43651.0,43648.0,0.114604]
[1644583317656,0.66431238,43651.0,43650.0,0.47]
[1644583318060,1.01126444,43651.0,43650.0,0.47]
[1644583318456,1.01126444,43651.0,43650.0,0.42]
[1644583319802,1.33100839,43651.0,43650.0,0.42]
[1644583320002,1.33100839,43651.0,43650.0,0.47]
[1644583320203,1.32900839,43651.0,43650.0,0.47]
[1644583321604,1.00926444,43651.0,43650.0,0.47]
[1644583322204,1.01126444,43651.0,43650.0,0.47]
[1644583322405,1.00926444,43651.0,43650.0,0.47]
[1644583323650,1.01126444,43651.0,43650.0,0.47]
[1644583323850,1.780335,43651.0,43650.0,0.42]
[1644583324049,1.58436444,43651.0,43650.0,0.42]
[1644583325449,1.78015334,43651.0,43650.0,0.42]
[1644583326049,1.88015334,43651.0,43650.0,0.42]
[1644583326898,1.68436444,43651.0,43650.0,0.42]
[1644583327100,1.92932764,43651.0,43650.0,0.42]
[1644583327599,1.68436444,43651.0,43650.0,0.42]
[1644583327799,1.92932764,43651.0,43650.0,0.42]
[1644583328403,1.68436444,43651.0,43650.0,0.42]
[1644583328800,2.18436444,43651.0,43650.0,0.42]
[1644583329003,2.18408875,43651.0,43645.0,0.0002]
[1644583329201,0.069325,43646.0,43645.0,0.0002]
[1644583329505,0.069325,43646.0,43636.0,0.114629]
[1644583329506,1.0,43645.0,43627.0,0.26050664]
[1644583329701,1.0,43645.0,43626.0,0.1]
[1644583329702,0.002,43636.0,43626.0,0.1]
[1644583329901,0.0458,43635.0,43626.0,0.1]
[1644583330100,0.3153203,43631.0,43626.0,0.1]
[1644583330357,0.3153203,43631.0,43629.0,0.229296]
[1644583330358,0.6711917,43630.0,43629.0,0.229296]
[1644583330954,0.6711917,43630.0,43629.0,0.114649]
[1644583331149,0.6711917,43630.0,43629.0,0.164649]
[1644583331550,0.6711917,43630.0,43629.0,0.05]
[1644583332150,0.6711917,43630.0,43628.0,0.279298]
[1644583332450,0.31418076,43629.0,43628.0,0.279298]
[1644583332651,0.36962376,43629.0,43628.0,0.279298]
[1644583332951,0.36962376,43629.0,43628.0,0.164651]
[1644583333151,0.055443,43629.0,43628.0,0.164651]
[1644583335001,0.36406354,43629.0,43628.0,0.164651]
[1644583336901,0.055443,43629.0,43628.0,0.164651]
[1644583337699,0.3632708,43629.0,43628.0,0.164651]
[1644583337955,0.055443,43629.0,43628.0,0.164651]
[1644583338155,0.055443,43629.0,43627.0,0.42]
[1644583338156,0.3618481,43629.0,43627.0,0.42]
[1644583338356,0.323864,43628.0,43627.0,0.42]
[1644583338553,0.369664,43628.0,43627.0,0.42]
[1644583338954,0.369664,43628.0,43620.0,0.00292239]
[1644583338955,1.0,43627.0,43620.0,0.00292239]
[1644583339155,0.65690144,43622.0,43620.0,0.00292239]
[1644583339354,0.33367558,43621.0,43620.0,0.00292239]
[1644583339556,0.34331858,43621.0,43618.0,0.057343]
[1644583339755,0.323864,43620.0,43618.0,0.057343]
[1644583339954,0.369664,43620.0,43618.0,0.057343]
[1644583340355,0.30886752,43619.0,43618.0,0.057343]
[1644583340553,0.31851052,43619.0,43618.0,0.057343]
[1644583341157,0.31851052,43619.0,43618.0,0.114681]
[1644583341362,0.30886752,43619.0,43618.0,0.164681]
[1644583341598,0.30886752,43619.0,43616.0,0.0002398]
[1644583341599,0.31851052,43619.0,43616.0,0.0002398]
[1644583341802,0.323864,43618.0,43616.0,0.0002398]
[1644583341999,0.28994337,43617.0,43615.0,0.114691]
[1644583342199,0.71380737,43617.0,43615.0,0.11493081]
[1644583342399,0.71380737,43617.0,43615.0,0.22960781]
[1644583343001,0.423864,43617.0,43615.0,0.22960781]
[1644583343203,0.423864,43617.0,43616.0,0.05]
[1644583343400,0.1,43617.0,43616.0,0.05]
[1644583343802,0.009643,43618.0,43616.0,0.05]
[1644583344200,0.323864,43620.0,43617.0,0.057337]
[1644583345551,0.07648754,43621.0,43618.0,0.057337]
[1644583345748,0.07648754,43621.0,43618.0,0.114671]
[1644583345949,0.07648754,43621.0,43619.0,0.114668]
[1644583346149,0.07648754,43621.0,43619.0,0.164668]
[1644583346553,0.323864,43620.0,43619.0,0.22200158]
[1644583346750,0.36466809,43626.0,43619.0,0.22200158]
[1644583346953,2.83803434,43635.0,43622.0,0.057327]
[1644583347152,0.323864,43632.0,43622.0,0.057327]
[1644583347352,0.31331926,43632.0,43622.0,0.057327]
[1644583347551,0.323864,43631.0,43622.0,0.114648]
[1644583347751,0.323864,43631.0,43625.0,0.0573191]
[1644583347752,0.08272636,43630.0,43625.0,0.0573191]
[1644583347952,0.323864,43631.0,43625.0,0.0573191]
[1644583347953,0.009643,43629.0,43625.0,0.0573191]
[1644583348151,0.009643,43629.0,43626.0,0.057323]
[1644583348353,0.009643,43629.0,43626.0,0.107323]
[1644583348754,0.009643,43629.0,43627.0,0.05732321]
[1644583349597,0.009643,43629.0,43627.0,0.10532321]
[1644583349796,2.78803434,43635.0,43627.0,0.10532321]
[1644583349797,0.009643,43634.0,43627.0,0.10532321]
[1644583350000,0.009643,43634.0,43627.0,0.16265021]
[1644583350198,0.009643,43634.0,43627.0,0.105327]
[1644583350599,0.009643,43634.0,43630.0,0.38625376]
[1644583350802,0.009643,43634.0,43629.0,0.114627]
[1644583350999,0.009643,43634.0,43630.0,0.16462485]
[1644583351000,0.08487675,43633.0,43630.0,0.16462485]
[1644583351200,0.323864,43632.0,43630.0,0.16462485]
[1644583351903,0.323864,43632.0,43630.0,0.22193885]
[1644583352300,0.40744471,43632.0,43630.0,0.22193885]
[1644583360455,0.40744471,43632.0,43631.0,0.05]
[1644583361855,0.40744471,43632.0,43630.0,0.22193885]
[1644583363458,0.323864,43632.0,43630.0,0.22193885]
[1644583363657,0.323864,43632.0,43631.0,0.048]
[1644583364104,2.78803434,43635.0,43631.0,0.048]
[1644583364306,2.78803434,43635.0,43634.0,0.048]
[1644583364504,2.78803434,43635.0,43634.0,0.43824543]
[1644583364505,2.65913434,43635.0,43634.0,0.43824543]
[1644583364706,2.65913434,43635.0,43634.0,0.54554943]
[1644583365304,2.65913434,43635.0,43634.0,0.84113642]
[1644583365504,2.65913434,43635.0,43634.0,1.22229932]
[1644583365704,0.00073037,43637.0,43634.0,1.27960232]
[1644583365906,0.00073037,43637.0,43636.0,0.057303]
[1644583366106,0.323864,43647.0,43641.0,0.4025825]
[1644583366308,0.3816907,43648.0,43641.0,0.4025825]
[1644583366309,0.00273735,43645.0,43641.0,0.4025825]
[1644583366506,0.00273735,43645.0,43642.0,0.05]
[1644583366710,0.00273735,43645.0,43642.0,0.10730348]
[1644583366908,0.00273735,43645.0,43642.0,0.45053031]
[1644583367207,0.25578749,43647.0,43642.0,0.22190648]
[1644583367407,0.323864,43646.0,43642.0,0.164603]
[1644583367866,0.323864,43646.0,43643.0,0.11459491]
[1644583367867,0.32454842,43646.0,43643.0,0.11459491]
[1644583368061,0.38185442,43646.0,43644.0,0.107306]
[1644583368461,0.38117,43646.0,43644.0,0.057306]
[1644583368660,0.40234228,43645.0,43644.0,0.057306]
[1644583368862,0.41198528,43645.0,43644.0,0.057308]
[1644583369362,0.46929328,43645.0,43644.0,0.057308]
[1644583370561,0.41198528,43645.0,43644.0,0.057308]
[1644583371605,0.41198528,43645.0,43639.0,0.28342835]
[1644583371606,0.323864,43644.0,43639.0,0.28342835]
[1644583371805,0.06752539,43643.0,43635.0,0.58710157]
[1644583372306,0.32330478,43642.0,43640.0,0.114612]
[1644583372506,0.32330478,43642.0,43640.0,0.17191676]
[1644583372710,0.323889,43643.0,43640.0,0.17191676]
[1644583373306,0.323889,43643.0,43640.0,0.22922176]
[1644583373908,0.323889,43643.0,43642.0,0.057305]
[1644583376157,0.323889,43643.0,43642.0,0.157305]
[1644583376359,0.323889,43644.0,43642.0,0.214607]
[1644583377357,0.323889,43644.0,43642.0,0.2719089]
[1644583379404,0.323889,43644.0,43642.0,0.214607]
[1644583384860,0.0458,43643.0,43638.0,0.114642]
[1644583385059,0.0458,43643.0,43629.0,0.22948278]
[1644583385060,0.20343944,43634.0,43629.0,0.22948278]
[1644583385258,0.20343944,43634.0,43626.0,0.229239]
[1644583385259,0.46758302,43632.0,43627.0,0.00025278]
[1644583385459,0.46758302,43632.0,43626.0,0.229239]
[1644583385460,0.054854,43631.0,43626.0,0.22949178]
[1644583385661,0.054854,43631.0,43629.0,0.057329]
[1644583386058,0.054854,43631.0,43629.0,0.114655]
[1644583386266,0.36753351,43631.0,43629.0,0.11490778]
[1644583386460,0.36716032,43631.0,43629.0,0.11490778]
[1644583386703,0.32388,43630.0,43629.0,0.11490778]
[1644583386903,0.36968,43630.0,43629.0,0.05758178]
[1644583388706,0.36968,43630.0,43629.0,0.00025278]
[1644583388907,0.427009,43630.0,43628.0,0.229309]
[1644583389108,0.427009,43630.0,43628.0,0.22956178]
[1644583389510,0.427009,43630.0,43628.0,0.229309]
[1644583389713,0.103129,43630.0,43628.0,0.229309]
[1644583389910,0.0458,43630.0,43629.0,0.048]
[1644583390114,0.0458,43630.0,43629.0,0.04825278]
[1644583391956,0.0455608,43630.0,43629.0,0.04825278]
[1644583394305,0.4267688,43630.0,43629.0,0.00025278]
[1644583394508,0.4267688,43630.0,43628.0,0.22956178]
[1644583394907,0.4994168,43630.0,43628.0,0.22353621]
[1644583395106,0.4994168,43630.0,43628.0,0.22328343]
[1644583395409,0.86270828,43630.0,43628.0,0.22328343]
[1644583396408,0.86243255,43630.0,43628.0,0.22328343]
[1644583396808,0.86243255,43630.0,43629.0,0.048]
[1644583397007,0.86243255,43630.0,43629.0,0.04825278]
[1644583397862,0.86243255,43630.0,43629.0,0.00025278]
[1644583398059,0.86243255,43630.0,43628.0,0.22328343]
[1644583398060,1.27413,43629.0,43628.0,0.04825278]
[1644583398264,1.32193,43629.0,43624.0,0.00068575]
[1644583398456,0.26139576,43626.0,43624.0,0.00068575]
[1644583398661,0.36968,43625.0,43620.0,0.057347]
[1644583398855,0.36968,43625.0,43624.0,0.00068571]
[1644583399469,0.36968,43625.0,43613.0,0.00274353]
[1644583399470,0.2,43623.0,43613.0,0.00274353]
[1644583399658,0.32388,43621.0,43613.0,0.00274353]
[1644583399860,0.0458,43620.0,43611.0,0.01]
[1644583400161,0.32388,43617.0,43611.0,0.01]
[1644583400358,0.34089047,43616.0,43611.0,0.01]
[1644583400558,0.34089047,43616.0,43614.0,0.057354]
[1644583400960,0.34089047,43616.0,43615.0,0.534698]
[1644583401458,0.34089047,43616.0,43615.0,0.42]
[1644583401710,0.36957577,43616.0,43615.0,0.42]
[1644583401915,0.94267577,43616.0,43615.0,0.42]
[1644583402912,0.6189,43616.0,43615.0,0.42]
[1644583403113,0.94278,43616.0,43615.0,0.42]
[1644583403313,0.6189,43616.0,43615.0,0.42]
[1644583403613,1.1189,43616.0,43615.0,0.42]
[1644583404415,1.44278,43616.0,43615.0,0.42]
[1644583404614,1.1189,43616.0,43615.0,0.42]
[1644583405217,1.1189,43616.0,43615.0,0.13458137]
[1644583405960,1.67660269,43616.0,43615.0,0.13458137]
[1644583406160,1.35272269,43616.0,43613.0,0.00067159]
[1644583406467,0.63342459,43602.0,43600.0,0.30921056]
[1644583406661,0.63342459,43602.0,43600.0,0.0001]
[1644583406662,0.75857459,43602.0,43600.0,0.0001]
[1644583407263,1.32662837,43602.0,43600.0,0.0001]
[1644583407461,1.38399637,43602.0,43600.0,0.0001]
[1644583407662,1.15799638,43602.0,43600.0,0.0001]
[1644583408862,1.68913607,43602.0,43600.0,0.0001]
[1644583409710,2.28913607,43602.0,43601.0,0.00698483]
[1644583409911,0.95,43601.0,43600.0,0.0001]
[1644583410211,2.22027973,43601.0,43600.0,0.0001]
[1644583410409,2.32027973,43601.0,43600.0,0.0001]
[1644583410611,2.82027973,43601.0,43600.0,0.0001]
[1644583411412,3.15385988,43601.0,43600.0,0.0001]
[1644583412112,2.72027973,43601.0,43600.0,0.0001]
[1644583412311,2.82027973,43601.0,43600.0,0.0001]
[1644583412957,2.82227973,43601.0,43600.0,0.0001]
[1644583413157,3.10148142,43601.0,43600.0,0.0001]
[1644583413957,3.09948142,43601.0,43600.0,0.0001]
[1644583415359,2.77198169,43601.0,43600.0,0.0001]
[1644583415759,5.53317339,43601.0,43600.0,0.0001]
[1644583417010,5.53317339,43601.0,43600.0,0.00035168]
[1644583417206,5.53317339,43601.0,43600.0,0.0001]
[1644583417408,5.53317339,43601.0,43600.0,0.00035168]
[1644583417608,5.53317339,43601.0,43600.0,0.0001]
[1644583418209,5.53317339,43601.0,43600.0,0.00035168]
[1644583418408,5.53317339,43601.0,43600.0,0.0001]
[1644583420009,5.53317339,43601.0,43600.0,0.00035168]
[1644583420209,5.53317339,43601.0,43600.0,0.0001]
[1644583421259,5.53317339,43601.0,43600.0,0.00035168]
[1644583421461,5.53317339,43601.0,43600.0,0.0001]
[1644583421661,5.53317339,43601.0,43600.0,0.00035168]
[1644583421860,5.53317339,43601.0,43600.0,0.0001]
[1644583423260,5.70532039,43601.0,43600.0,0.0001]
[1644583426609,1.27388,43600.0,43599.0,0.00016931]
[1644583426811,1.977058,43600.0,43599.0,0.00016931]
[1644583427010,1.977058,43600.0,43598.0,0.16549001]
[1644583427413,1.977058,43600.0,43598.0,0.10811201]
[1644583427611,1.977058,43600.0,43598.0,0.107383]
[1644583427871,1.977058,43600.0,43598.0,0.057383]
[1644583428063,1.977058,43600.0,43598.0,0.05755231]
[1644583428265,0.5,43599.0,43598.0,0.05755231]
[1644583428464,0.86968,43599.0,43598.0,0.05755231]
[1644583428664,0.96968,43599.0,43598.0,0.05755231]
[1644583428865,1.3304913,43599.0,43598.0,0.05755231]
[1644583429066,0.96968,43599.0,43598.0,0.05755231]
[1644583430085,0.96968,43599.0,43573.0,0.3812]
[1644583430086,0.07317795,43586.0,43573.0,0.3812]
[1644583430268,0.07317795,43586.0,43571.0,0.01]
[1644583430269,0.36968,43585.0,43577.0,0.1]
[1644583430468,0.36968,43585.0,43578.0,0.00025187]
[1644583430469,0.77845102,43585.0,43578.0,0.00025187]
[1644583430766,0.77845102,43585.0,43580.0,0.057397]
[1644583430967,0.77845102,43585.0,43581.0,0.01025187]
[1644583431169,0.34620594,43582.0,43581.0,0.01025187]
[1644583431369,0.427076,43582.0,43581.0,0.01025187]
[1644583431616,0.75050319,43581.0,43579.0,0.0479]
[1644583431814,0.75050319,43581.0,43577.0,0.214794]
[1644583431815,0.0458,43580.0,43577.0,0.1]
[1644583432014,0.32388,43579.0,43577.0,0.1]
[1644583432212,0.33509681,43578.0,43577.0,0.1]
[1644583432412,0.65897681,43578.0,43577.0,0.1]
[1644583432617,1.03049936,43578.0,43577.0,0.1]
[1644583432812,0.74120255,43578.0,43577.0,0.1]
[1644583433012,0.4845,43578.0,43577.0,0.1]
[1644583433215,0.9845,43578.0,43577.0,0.1]
[1644583433514,0.9845,43578.0,43571.0,0.01]
[1644583433515,0.66062,43578.0,43571.0,0.01]
[1644583433712,0.32388,43577.0,43571.0,0.005]
[1644583433912,0.36968,43576.0,43575.0,0.00072882]
[1644583434112,0.6133724,43576.0,43575.0,0.00072882]
[1644583434313,1.28974986,43576.0,43575.0,0.00072882]
[1644583434515,0.95,43575.0,43571.0,0.00072882]
[1644583434714,0.36968,43574.0,43571.0,0.00072882]
[1644583434915,0.49024645,43574.0,43571.0,0.00072882]
[1644583435560,0.54766052,43574.0,43571.0,0.00072882]
[1644583435759,0.438707,43573.0,43571.0,0.00072882]
[1644583435959,0.0458,43572.0,43571.0,0.00072882]
[1644583436160,0.36968,43572.0,43571.0,0.00072882]
[1644583437360,0.427093,43572.0,43571.0,0.00072882]
[1644583442208,0.927093,43572.0,43571.0,0.00072882]
[1644583443261,1.26276152,43572.0,43571.0,0.00072882]
[1644583443460,1.36276152,43572.0,43571.0,0.00072882]
[1644583443659,1.36276152,43572.0,43567.0,0.0665]
[1644583443660,0.95,43571.0,43567.0,0.0665]
[1644583443862,0.86968,43570.0,43567.0,0.0665]
[1644583444061,0.057428,43569.0,43567.0,0.0665]
[1644583444262,0.94145292,43568.0,43567.0,0.0665]
[1644583444463,1.51455292,43568.0,43567.0,0.0665]
[1644583444662,1.0257648,43567.0,43553.0,1.2113]
[1644583444862,0.32388,43564.0,43553.0,0.42]
[1644583445065,0.32388,43564.0,43551.0,0.01]
[1644583445066,0.53571699,43561.0,43551.0,0.01]
[1644583445263,0.057443,43558.0,43551.0,0.01]
[1644583445466,0.057443,43558.0,43546.0,0.00076224]
[1644583445467,0.5731,43552.0,43546.0,0.00076224]
[1644583445663,0.08507532,43550.0,43546.0,0.00076224]
[1644583445863,0.29917859,43545.0,43535.0,2.02454499]
[1644583446063,0.07705487,43542.0,43535.0,2.08371587]
[1644583446264,0.0458,43541.0,43535.0,2.08371587]
[1644583446714,0.07587784,43541.0,43535.0,2.08371887]
[1644583446912,0.17236,43547.0,43537.0,0.05]
[1644583447116,0.36968,43546.0,43537.0,0.05]
[1644583447312,0.36968,43546.0,43539.0,0.057439]
[1644583447714,0.36968,43546.0,43537.0,0.00099802]
[1644583447715,0.19370942,43543.0,43537.0,0.00099802]
[1644583447914,0.19370942,43543.0,43537.0,0.00074688]
[1644583447915,0.36968,43542.0,43537.0,0.00074688]
[1644583448117,0.36968,43542.0,43537.0,0.00099802]
[1644583448312,0.36968,43542.0,43538.0,0.00064695]
[1644583448513,0.36968,43542.0,43538.0,0.00089809]
[1644583448714,0.32388,43540.0,43538.0,0.00187009]
[1644583448915,0.427136,43539.0,43538.0,0.00187009]
[1644583449312,0.427136,43539.0,43538.0,0.00122314]
[1644583450113,0.927136,43539.0,43538.0,0.00122314]
[1644583450862,0.86968,43539.0,43538.0,0.00122314]
[1644583451263,1.09968,43539.0,43538.0,0.00122314]
[1644583451666,0.59968,43539.0,43538.0,0.00122314]
[1644583451963,0.8170898,43539.0,43538.0,0.00122314]
[1644583452162,0.59968,43539.0,43538.0,0.00122314]
[1644583454611,0.59968,43539.0,43538.0,0.14698564]
[1644583454813,0.59968,43539.0,43538.0,0.19698564]
[1644583459463,0.55388,43539.0,43538.0,0.19698564]
[1644583460067,0.334609,43539.0,43538.0,0.19698564]
[1644583460568,0.23,43539.0,43538.0,0.83433311]
[1644583460768,0.23,43539.0,43538.0,0.88433311]
[1644583461167,0.23,43539.0,43538.0,0.62146164]
[1644583461367,0.23,43539.0,43538.0,0.24698564]
[1644583461615,0.23,43539.0,43538.0,0.57146164]
[1644583462014,1.609503,43550.0,43539.0,0.874476]
[1644583462213,1.609503,43550.0,43545.0,0.107434]
[1644583462415,0.104528,43549.0,43545.0,0.107434]
[1644583462615,0.36052323,43547.0,43545.0,0.107434]
[1644583462817,0.161966,43547.0,43545.0,0.10808619]
[1644583463018,0.161966,43547.0,43545.0,0.10833733]
[1644583463217,0.104528,43547.0,43545.0,0.16577133]
[1644583463918,0.07215681,43548.0,43545.0,0.16511914]
[1644583463919,0.39999341,43546.0,43545.0,0.16511914]
[1644583464121,0.39971754,43546.0,43545.0,0.16511914]
[1644583464418,0.39971754,43546.0,43545.0,0.10768514]
[1644583464618,0.39971754,43546.0,43545.0,0.05768514]
[1644583466372,0.104528,43546.0,43545.0,0.05768514]
[1644583466568,0.104528,43546.0,43545.0,0.10768514]
[1644583466768,1.609503,43550.0,43546.0,0.057435]
[1644583466966,1.609503,43550.0,43546.0,0.11512114]
[1644583466967,0.5,43549.0,43546.0,0.11512114]
[1644583467169,0.5,43549.0,43546.0,0.16512114]
[1644583467468,0.06776058,43548.0,43546.0,0.16512114]
[1644583468269,0.06776058,43548.0,43547.0,0.114866]
[1644583468472,0.06776058,43548.0,43547.0,0.11511714]
[1644583469319,0.06776058,43548.0,43547.0,0.00025114]
[1644583469519,0.06776058,43548.0,43546.0,0.10768614]
[1644583471323,0.06776058,43548.0,43546.0,0.22255614]
[1644583471723,0.00744386,43546.0,43545.0,0.11552859]
[1644583472423,0.00744386,43546.0,43545.0,0.114876]
[1644583472623,0.057448,43545.0,43544.0,0.000972]
[1644583472871,0.00744386,43546.0,43544.0,0.000972]
[1644583473763,0.05744,43545.0,43544.0,0.000972]
[1644583476615,0.05744,43545.0,43544.0,0.32951432]
[1644583476820,0.00744386,43546.0,43544.0,0.32951432]
[1644583477819,0.00744386,43546.0,43544.0,0.000972]
[1644583478021,0.06488286,43546.0,43544.0,0.000972]
[1644583480122,0.00744386,43546.0,43544.0,0.000972]
[1644583480561,0.0728793,43546.0,43544.0,0.000972]
[1644583481163,0.00744386,43546.0,43544.0,0.000972]
[1644583483166,0.0458,43545.0,43544.0,0.000972]
[1644583483662,0.160706,43545.0,43544.0,0.000972]
[1644583484309,0.660706,43545.0,43544.0,0.000972]
[1644583486213,0.5458,43545.0,43544.0,0.000972]
[1644583486414,0.5,43545.0,43544.0,0.000972]
[1644583486613,0.4972173,43545.0,43544.0,0.000972]
[1644583488067,0.0203,43545.0,43544.0,0.000972]
[1644583488267,0.0203,43545.0,43544.0,0.00122312]
[1644583490073,0.0203,43545.0,43544.0,0.2707433]
[1644583490473,1.609503,43550.0,43545.0,0.057428]
[1644583490672,1.609503,43550.0,43546.0,0.25234571]
[1644583490872,1.609503,43550.0,43547.0,0.2698553]
[1644583491073,1.609503,43550.0,43547.0,0.46477401]
[1644583491275,1.609503,43550.0,43547.0,0.46502513]
[1644583491709,1.609503,43550.0,43548.0,0.19491871]
[1644583491910,1.609503,43550.0,43548.0,0.24516983]
[1644583492316,1.08579187,43550.0,43548.0,0.05025112]
[1644583492711,1.08579187,43550.0,43548.0,0.10768112]
[1644583492912,1.08579187,43550.0,43548.0,0.00025112]
[1644583493118,1.08579187,43550.0,43547.0,0.00065216]
[1644583493119,0.95,43548.0,43547.0,0.00065216]
[1644583493315,0.9958,43548.0,43547.0,0.00065216]
[1644583494114,0.9958,43548.0,43545.0,0.057447]
[1644583494315,0.28132507,43546.0,43545.0,0.05809917]
[1644583494515,0.32712507,43546.0,43545.0,0.05809917]
[1644583494916,0.32712507,43546.0,43545.0,0.11554217]
[1644583495365,0.32712507,43546.0,43545.0,0.11489]
[1644583495561,0.0458,43546.0,43545.0,0.11489]
[1644583495861,0.0458,43546.0,43545.0,0.16489]
[1644583496760,0.0458,43546.0,43545.0,0.107447]
[1644583497361,0.0458,43546.0,43545.0,0.057447]
[1644583498163,0.057443,43547.0,43545.0,0.057447]
[1644583498362,0.057443,43547.0,43545.0,0.114884]
[1644583500228,0.057443,43547.0,43545.0,0.057447]
[1644583500617,0.0458,43546.0,43545.0,0.057447]
[1644583501016,0.23,43548.0,43545.0,0.25236571]
[1644583501213,0.23,43548.0,43547.0,0.28664427]
[1644583501612,0.23,43548.0,43547.0,0.33664427]
[1644583502216,0.23,43548.0,43547.0,0.53156298]
[1644583502417,0.23,43548.0,43547.0,0.48156298]
[1644583502874,0.23,43548.0,43546.0,0.17228]
[1644583504265,0.23,43548.0,43546.0,0.114853]
[1644583504666,0.22688066,43548.0,43546.0,0.114853]
[1644583505265,0.28431566,43548.0,43546.0,0.114853]
[1644583505666,0.28431566,43548.0,43546.0,0.172289]
[1644583506816,0.28431566,43548.0,43546.0,0.114853]
[1644583508126,0.28431566,43548.0,43545.0,0.00065217]
[1644583508127,0.29485447,43546.0,43545.0,0.00065217]
[1644583508322,0.34065447,43546.0,43545.0,0.00065217]
[1644583508520,0.34065447,43546.0,43544.0,0.000972]
[1644583508919,0.34065447,43546.0,43544.0,0.00122203]
[1644583509119,0.3483183,43545.0,43544.0,0.00122203]
[1644583509321,0.3941183,43545.0,43544.0,0.05546379]
[1644583509522,0.8941183,43545.0,43544.0,0.05546379]
[1644583510022,0.8941183,43545.0,43544.0,0.05521376]